Cogmind - Beta 16 @@@ ROGUE MODE // 2025.11.15 @ 22:27:02 Player: Kakograf Result: Destroyed by YI-UF0 with YI-UF0's Doublenader Performance ------------- Evolutions (1) 500 Regions Visited (3) 600 Robots Destroyed (22) 110 Value Destroyed (541) 541 Prototype IDs (0) 0 Alien Tech Used (0) 0 Bonus (0) 0 TOTAL SCORE: 1751 Bonus ------- None Cogmind --------- Core Integrity 0/400 Matter 252/300 Energy 264/265 System Corruption 0% Temperature Cool (2) Movement Hovering (120) Ox1 Location -9/Mines Parts ------- > --- POWER (1) -------- Improved Ion Engine > --- PROPULSION (3) --- Hover Unit > --- UTILITY (3) ------ Visual Processing Unit > --- WEAPON (2) ------- Particle Gun Light Assault Rifle > --- INVENTORY (5) ---- (None) Peak State ------------ > --- POWER ------------ Ion Engine > --- PROPULSION ------- Aluminum Leg Aluminum Leg Aluminum Leg > --- UTILITY ---------- Visual Processing Unit Propulsion Shielding Light Armor Plating > --- WEAPON ----------- Assault Rifle Heavy Assault Rifle > --- INVENTORY -------- Improved Ion Engine Hover Unit Particle Gun Light Assault Rifle [Rating: 11] Favorites ----------- Power Light Ion Engine Engine Light Ion Engine Propulsion Aluminum Leg Leg Aluminum Leg Hover Unit Hover Unit Flight Unit Flight Unit Utility Light Armor Plating Processor Visual Processing Unit Protection Light Armor Plating Weapon Assault Rifle Energy Gun Particle Gun Ballistic Gun Assault Rifle Build | -11 -10 -9 -9 ------- Run | Yrd Mat Mat Min Slots Evolved 2 | . . 2 . Power . | . . . . Propulsion 1 | . . 1 . Utility 1 | . . 1 . Weapon . | . . . . Parts Attached 21 | 5 2 11 3 Power 4 | 1 . 2 1 Engine 4 | 1 . 2 1 Core . | . . . . Reactor . | . . . . Propulsion 10 | 2 2 4 2 Treads . | . . . . Leg 5 | 2 . 3 . Wheel . | . . . . Hover 2 | . . . 2 Flight 3 | . 2 1 . Utility 3 | . . 3 . Device . | . . . . Storage . | . . . . Processor 1 | . . 1 . Hackware . | . . . . Protection 2 | . . 2 . Artifact . | . . . . Weapon 4 | 2 . 2 . Energy Gun 1 | . . 1 . Energy Cannon . | . . . . Ballistic Gun 3 | 2 . 1 . Ballistic Cannon . | . . . . Launcher . | . . . . Special Weapon . | . . . . Impact Weapon . | . . . . Slashing Weapon . | . . . . Piercing Weapon . | . . . . Special Melee Weapon . | . . . . Unidentified Prototypes . | . . . . Parts Lost 13 | . . 4 9 Power 2 | . . 1 1 Propulsion 7 | . . 3 4 Utility 2 | . . . 2 Weapon 2 | . . . 2 Highest Loss Streak 8 | . . 3 8 To Critical Strikes . | . . . . Average Backups 3 | . 3 4 3 Power 1 | . . 1 . Propulsion . | . . . 1 Utility . | . . . . Weapon 1 | . 1 2 1 Tool/Special . | . . . . Unused Backups . | . . . . Power . | . . . . Propulsion . | . . . . Utility . | . . . . Weapon . | . . . . Tool/Special . | . . . . Average Slot Usage (%) 78 | . 71 81 77 Engine 11 | . 14 10 11 Leg 22 | . 11 26 17 Flight 6 | . 16 4 . Processor 1 | . . . 11 Protection 12 | . . 17 11 Ballistic Gun 22 | . 28 21 16 Peak Build Rating 11 | 5 5 11 11 Average Rating 7 | 3 5 8 8 On Entrance 5 | . 5 5 11 Avg Prop Armor Cover (%) 3 | . . 3 . Naked Turns . | . . . . Heaviest Build 14 | 8 8 14 14 Greatest Support 30 | 20 20 30 30 Greatest Overweight (x) 1 | . . 1 . Average Overweight (x) . | . . . . Largest Inventory Capacity 5 | 5 5 5 5 Average Capacity 5 | 5 5 5 5 Most Carried 5 | 2 5 5 5 Average Carried 3 | . 3 4 3 Final Capacity 5 | 5 5 5 5 Final Carried 5 | . 5 5 . Class Distribution -------------------- 55% | Scavenger-Mutant 44% | Mutant Dominant Class ---------------- Mutant | -10/Materials Scavenger-Mutant | -9/Materials Scavenger-Mutant | -9/Mines Resources | -11 -10 -9 -9 ----------- Run | Yrd Mat Mat Min Matter Collected 679 | 240 62 377 . Remotely . | . . . . Salvage Created 702 | . 142 560 . Parts 52 | . 17 35 . Haulers Intercepted . | . . . . Recyclers Shooed 1 | . . 1 . Parts Field Recycled . | . . . . Retrieved Matter . | . . . . Parts Self-Destructed . | . . . . Prevented . | . . . . Parts Restored . | . . . . Kills | -11 -10 -9 -9 ------- Run | Yrd Mat Mat Min Combat Hostiles Destroyed 17 | . 7 10 . Guns 17 | . 7 10 . Classes Destroyed 6 | . 3 3 . Builder 1 | . . 1 . Recycler 1 | . . 1 . Watcher 3 | . 1 2 . Swarmer 6 | . 6 . . Grunt 9 | . 1 8 . Sentry 2 | . . 2 . Best Kill Streak 4 | . 3 4 . Combat Bots Only 3 | . 3 3 . Max Kills in Single Turn 2 | . 2 1 . Gunslinging 1 | . 1 . . Exploded . | . . . . Melee . | . . . . Uniques/NPCs Destroyed . | . . . . Combat | -11 -10 -9 -9 -------- Run | Yrd Mat Mat Min Hostile Shots Fired 142 | . 54 64 24 Missed 48 | . 20 19 9 Hits 94 | . 34 45 15 Projectile 94 | . 34 45 15 AOE 19 | . . . 19 Critical Strikes 1 | . . 1 . Damage Taken 1442 | . 271 579 592 Core 483 | . 82 126 275 Absorbed by Shields . | . . . . Redirected to Shielding 53 | . . 36 17 Core Remaining (%) 83 | 100 67 . . Volleys Fired 71 | . 21 45 5 Largest 2 | . 2 2 2 Hottest 88 | . 40 88 43 Shots Fired 142 | . 42 90 10 Gun 142 | . 42 90 10 Cannon . | . . . . Launcher . | . . . . Special . | . . . . Kinetic 132 | . 42 80 10 Thermal 10 | . . 10 . Explosive . | . . . . Electromagnetic . | . . . . Robot Hit Streak 12 | . 8 12 7 Robot Miss Streak 4 | . 4 3 1 Penetration Max . | . . . . Secondary Targets 3 | . 3 . . Max Gunslinging Chain 1 | . 1 . . Shots Hit Robots 99 | . 24 67 8 Core Hits 38 | . 11 25 2 Critical Kills . | . . . . Critical Parts Destroyed . | . . . . Critical Strikes . | . . . . Melee Attacks . | . . . . Impact . | . . . . Slashing . | . . . . Piercing . | . . . . Sneak Attacks . | . . . . Combat Hostiles . | . . . . Follow-up Attacks . | . . . . Damage Inflicted 1300 | . 242 946 112 Guns 1300 | . 242 946 112 Cannons . | . . . . Explosions . | . . . . Melee . | . . . . Ramming . | . . . . Kinetic 1153 | . 242 799 112 Thermal 147 | . . 147 . Explosive . | . . . . Electromagnetic . | . . . . Impact . | . . . . Slashing . | . . . . Piercing . | . . . . Highest Corruption . | . . . . Average Corruption . | . . . . Corruption Purged . | . . . . Corruption Blocked . | . . . . Overload Shots . | . . . . Overflow Damage . | . . . . Projectiles . | . . . . Explosions . | . . . . Melee . | . . . . Knockbacks . | . . . . Impact . | . . . . Kinetic . | . . . . Secondary . | . . . . Self-Inflicted Damage . | . . . . Shots . | . . . . Rammed . | . . . . Targets Rammed . | . . . . Kicked . | . . . . Crushed . | . . . . Highest Temperature 215 | . 10 215 . Average Temperature 66 | . 5 92 . Received Heat Transfer 333 | . 30 303 . Siege Activations . | . . . . Martial Activations . | . . . . Shielding Activations . | . . . . Robots Disrupted . | . . . . Combat Hostiles . | . . . . Robots Corrupted . | . . . . Combat Hostiles . | . . . . Parts Fried . | . . . . Impact Corruptions . | . . . . Robots Melted . | . . . . Combat Hostiles . | . . . . Parts Melted 1 | . . 1 . Heat Transferred 370 | . . 370 . Parts Sabotaged . | . . . . Parts Stolen . | . . . . Parts Stripped . | . . . . Power Chain Reactions . | . . . . Alert | -11 -10 -9 -9 ------- Run | Yrd Mat Mat Min Maximum Alert Level . | . . . . Low Security (%) 100 | 100 100 100 100 Level 1 . | . . . . Level 2 . | . . . . Level 3 . | . . . . Level 4 . | . . . . Level 5 . | . . . . High Security . | . . . . Max Security . | . . . . Peak Influence 162 | . 162 86 23 Initial 23 | . . . 23 Average 27 | . 60 25 7 Influence Increases 523 | . 222 301 . Destroy 0b10 Robot/C 340 | . 140 200 . Destroy 0b10 Robot/NC 25 | . 5 20 . Destroy Leader 86 | . 32 54 . Successful Hack 11 | . . 11 . Destroy Structure 1 | . . 1 . Lose Combat Pursuer 60 | . 45 15 . Influence Decreases 523 | . 220 242 61 Entered New Map 40 | . . 2 38 Time Decay 280 | . 70 200 10 Lost Part 53 | . . 40 13 Purge Threat 150 | . 150 . . Squads Dispatched 2 | . 1 1 . Investigation . | . . . . Extermination . | . . . . Reinforcement 2 | . 1 1 . Assault . | . . . . Garrison . | . . . . Intercept . | . . . . Searches Triggered . | . . . . Construction Impeded . | . . . . Haulers Reinforced . | . . . . Active Scanning Responses . | . . . . Cargo Convoy Interrupts . | . . . . Stealth | -11 -10 -9 -9 --------- Run | Yrd Mat Mat Min Distress Signals 3 | . 2 1 . Communications Jammed . | . . . . Distress Signals . | . . . . Times Spotted 31 | . 12 15 4 Peak Tracking Total 5 | . 4 5 3 Tactical Retreats 3 | . 1 1 1 Traps | -11 -10 -9 -9 ------- Run | Yrd Mat Mat Min Traps Triggered . | . . . . Indirectly . | . . . . Trap Hack Attempts . | . . . . Triggered . | . . . . Disarmed . | . . . . Reprogrammed . | . . . . Reused . | . . . . Traps Extracted . | . . . . Installed . | . . . . Triggered . | . . . . Machines | -11 -10 -9 -9 ---------- Run | Yrd Mat Mat Min Machines Disabled . | . . . . Max in Single Turn . | . . . . Machines Repaired . | . . . . Machines Dismantled . | . . . . Machines Sabotaged . | . . . . Overloaded Fab Kills . | . . . . Hacking | -11 -10 -9 -9 --------- Run | Yrd Mat Mat Min Machines Accessed 5 | . 3 2 . Terminals 5 | . 3 2 . Fabricators . | . . . . Repair Stations . | . . . . Recycling Units . | . . . . Scanalyzers . | . . . . Garrison Access . | . . . . Total Hacks 12 | . 5 7 . Successful 5 | . 2 3 . Failed 7 | . 3 4 . Catastrophic 3 | . 2 1 . Database Lockouts . | . . . . Manual 7 | . 1 6 . Terminals 12 | . 5 7 . Fabricators . | . . . . Repair Stations . | . . . . Recycling Units . | . . . . Scanalyzers . | . . . . Garrison Access . | . . . . Terminal Hacks 5 | . 2 3 . Alert Level 1 | . 1 . . Unreport Threat 1 | . 1 . . Maintenance Status 1 | . . 1 . Zone Layout 2 | . . 2 . Fabricator Hacks . | . . . . Repair Station Hacks . | . . . . Recycling Unit Hacks . | . . . . Scanalyzer . | . . . . Garrison Access Hacks . | . . . . Unauthorized Hacks . | . . . . Terminals . | . . . . Fabricators . | . . . . Repair Stations . | . . . . Recycling Units . | . . . . Scanalyzers . | . . . . Garrison Access . | . . . . Data Cores Recovered . | . . . . Used . | . . . . Hacking Detections 4 | . 3 1 . Full Trace Events . | . . . . Feedback Events . | . . . . Feedback Blocked . | . . . . Robot Schematics Acquired . | . . . . Robots Built . | . . . . Authchips . | . . . . Time . | . . . . Total Robot Build Rating . | . . . . Part Schematics Acquired . | . . . . Parts Built . | . . . . Authchips . | . . . . Time . | . . . . Total Part Build Rating . | . . . . Part Studies Acquired . | . . . . Parts Repaired . | . . . . Time . | . . . . Parts Recycled . | . . . . Recycled Matter . | . . . . Retrieved Matter . | . . . . Retrieved Components . | . . . . Parts Scanalyzed . | . . . . Part Schematics Acquired . | . . . . Parts Damaged . | . . . . Bothacking | -11 -10 -9 -9 ------------ Run | Yrd Mat Mat Min Used RIF Installer . | . . . . Robots Hacked . | . . . . Non-combat . | . . . . Combat . | . . . . Robot Hacks Applied . | . . . . Relay Couplers Released . | . . . . Fabnet Peak Effective % . | . . . . Robots Rewired . | . . . . Allies Hacked . | . . . . Hacks Repelled . | . . . . Allies | -11 -10 -9 -9 -------- Run | Yrd Mat Mat Min Total Allies . | . . . . Largest Group . | . . . . Highest-Rated Group . | . . . . Highest-Rated Ally . | . . . . Total Orders . | . . . . Ally Attacks . | . . . . Total Damage . | . . . . Kills . | . . . . Allies Corrupted . | . . . . Allies Melted . | . . . . Intel | -11 -10 -9 -9 ------- Run | Yrd Mat Mat Min Active Infowar (turns) 104 | . . 19 85 Optics 104 | . . 19 85 Robot Analysis Total . | . . . . Derelict Logs Recovered . | . . . . Drone Launches . | . . . . Drone Recoveries . | . . . . Exploration | -11 -10 -9 -9 ------------- Run | Yrd Mat Mat Min Turns Passed 969 | 128 190 566 85 Spaces Moved 787 | 106 241 357 83 Core 26 | 16 . . 10 Treads . | . . . . Legs 438 | 90 37 283 28 Wheels . | . . . . Hover 45 | . . . 45 Flight 278 | . 204 74 . Fastest Speed 34 | 50 37 34 50 Average Speed 85 | 109 49 104 76 Slowest Speed 120 | 120 120 120 120 Overloaded Moves . | . . . . Propulsion Burnouts . | . . . . Robots Hopped 2 | . 2 . . Potential Cave-ins . | . . . . Cave-ins Triggered . | . . . . Exploration Rate (%) 21 | 5 40 19 22 Regions Visited 3 Branch Regions 1 Pre-discovered Areas . | . . . . Known Exits Taken . | . . . . Unknown Exits Taken 3 | 1 1 1 . Scrap Searched . | . . . . Spaces Dug . | . . . . Terrain Destroyed . | . . . . Melee . | . . . . Projectile . | . . . . AOE . | . . . . Terrain Rammed . | . . . . Walls Destroyed . | . . . . Machines Disabled . | . . . . Actions | -11 -10 -9 -9 --------- Run | Yrd Mat Mat Min Total 943 | 119 270 460 94 Wait 34 | . . 33 1 Move 780 | 105 236 356 83 Hop 2 | . 2 . . Pick Up 25 | 7 7 11 . Fast Attach . | . . . . Attach 18 | 5 . 8 5 Detach . | . . . . Swap 6 | . 2 4 . Drop 7 | 2 2 3 . Fire 71 | . 21 45 5 Melee . | . . . . Ram . | . . . . Kick . | . . . . Crush . | . . . . Escape Stasis . | . . . . Rewire . | . . . . Trap . | . . . . Miscellaneous . | . . . . Route ------- -11/Scrapyard -10/Materials -9/Materials (discovered 2 exits: [*Min x2]) -9/Mines (discovered 2 exits: [*Mat x2]) History --------- Turn | Location | Event 4 | -11/Scrapyard | Discovered new exit (range 16) 129 | -11/Scrapyard | Entered Materials 297 | -10/Materials | Discovered new exit (range 13) 304 | -10/Materials | Build established: Mutant 319 | -10/Materials | Entered another Materials area 319 | -9/Materials | Evolved 2 slots: Propulsion x1, Utility x1 326 | -9/Materials | Discovered new exit (range 16) 423 | -9/Materials | Lost 3 parts (1p2n) 734 | -9/Materials | Build established: Scavenger-Mutant 738 | -9/Materials | Discovered new exit (range 16) 885 | -9/Materials | Entered Mines 888 | -9/Mines | Discovered new exit (range 13) 897 | -9/Mines | Discovered new exit (range 9) 919 | -9/Mines | Core integrity fell below 50% 935 | -9/Mines | Core integrity fell below 20% 965 | -9/Mines | Lost 8 parts (1p3n2u2w) 970 | -9/Mines | Destroyed by YI-UF0 with YI-UF0's Doublenader Last Messages --------------- Assault Rifle destroyed. Hvy. Assault Rifle destroyed. R-06 Scavenger destroyed. Ion Engine destroyed. T-07 Excavator destroyed. The unstable cave ceiling collapses. Aluminum Leg destroyed. The unstable cave ceiling collapses. [Achievement: There's More Where That Came From] U-05 Engineer lays Concrete. R-06 Scavenger collects Lgt. Ion Engine. U-05 Engineer lays Concrete. R-06 Scavenger collects Lgt. Ion Engine. U-05 Engineer lays Concrete. The unstable cave ceiling collapses. U-05 Engineer lays Concrete. The unstable cave ceiling collapses. U-05 Engineer builds a Wall. The unstable cave ceiling collapses. Hover Unit destroyed. Map ----- +----------------------------------------------------+ | ?????????????????????????????????????????????????? | | ?????????????????????????????????????????????????? | | ?????????????????????????????????????????????????? | | ?????????????????????????????????????????????????? | | ???????????????????????????????????????? ????????? | | ???????????????????????????????????????? ????????? | | ???????????????????????????????????????? ????????? | | ???????????????????????????????????????? ????????? | | ???????????????????????????????????????? ????????? | | ???????????????????????????????????????? ????????? | | ???????????????????????????????????????? ????????? | | ???????????????????????????????????????? ????????? | | ???????????????????????????????????????# #???????? | | ???????????????????????????????????????# #???????? | | ???????????????????????????????????????# #???????? | | ???????????????????????????????????????# #???????? | | ???????????????????????????###?????????# #???????? | | ??????????????????????????## #########?# #???????? | | ?????????????????????????## # ## ### #?####??? | | ?????????????????????????# # ## #?# #??? | | ?????????????????????????# ### #???? | | ?????????????????????????# % #???? | | ????????????????????####?# ## # ### #???? | | ???????????########## ## < #??# #???? | | ???????????? # ##??# #???? | | ????????????????????# % @ ##???# ##??? | | ????????????????????# #### #???## ##?? | | ????????????????????# #?# ### # ##### ### | | ????????????????????##g#??# # ## ## | | ?????????????????????# #??## # # | | ?????????????????????# #???# % ##### | | ?????????????????????# #???# # ###???? | | ?????????????????????# ##### ######??????? | | ?????????????????????# ###???????????? | | ?????????????????????# ##### ##?????????????? | | ?????????????????????# #???# # #?????????????? | | ????????????????????? ???#### ###?????????????? | | ???????????????????? ??????# #?????????????? | | ??????????????????? ??????# #????????????? | | ???????????????????!! ??????# #????????????? | | ?????????????????? ! ?????# ##????????????? | | ?????????????????! ! ?????# ##?????????????? | | ???????????????? !!? ?????# #??????????????? | | ???????????????? ? ?????## #??????????????? | | ??????????????? ? #?????? #??????????????? | | ??????????????# ? #?????? #??????????????? | | ??????????????# ?? #?????? #??????????????? | | ??????????????# ?? #?????? ??????????????? | | ??????????????????########???????????????????????? | | ?????????????????????????????????????????????????? | +----------------------------------------------------+ Best States ------------- Heat Dissipation 28 Energy Generation 12 Energy Capacity 265 Matter Stores 300 Matter Capacity 300 Sight Range 18 Terrain Scan Density 10 Armor Coverage 150 Propulsion Shielding 33 Evasion (%) 63 Item Schematics ----------------- None Robot Schematics ------------------ None Fabricated ------------ Nothing Repaired ---------- Nothing Studied --------- None Alien Tech Used ----------------- None Achievements -------------- DATA ERROR: Steam Global Achievement% Ghost 'Em Organ Harvest Spot Them First There's More Where That Came From Challenges ------------ None Game ------ Seed ExoskeletonFlyingSource Manual? 0 Play Time 00:17:22 Cumulative 12.6 hours Start 2025.11.15 @ 22:11:06 End 2025.11.15 @ 22:27:02 Sessions 1 Manual Loads 0 Difficulty Rogue Special Mode None Game No. 17 Rogue 17 Adventurer 0 Explorer 0 Win Type - Total 0 Types 0/0/0/0/0/0/0/0/0/0 Lore% 3 Gallery% 14 Achievement% 10 Wizard Run 0 Options --------- Layout 1 ASCII 0 Keyboard 1 Movement Arrows Keybinds 0 Fullscreen 1 Font 24/Smallcaps Map View 50x35 Zoom Use 0% Tactical HUD 0 Map Filters NONE Filters NONE Steam 1 RUN: 73710074-04e8-404c-8209-b21ee525014b